{"text_format":"3","workbook":"xlsx","n_sheets":3,"sheets":["Tugas","Tampilan Bulan","Tampilan Minggu"],"not_rendered":{"images":4,"defined_names":16},"read":"whole","date_system":"1900"}

{"sheet":"Tugas","index":0,"n_rows":15,"n_cols":3,"rows_kept":15}
[null,"TAMPILAN BULAN","TAMPILAN MINGGU"]
[null," TUGAS"]
[null,"DESKRIPSI","JATUH TEMPO"]
[null,"Tugas 1",{"$f":"TODAY()","v":"2016-11-29"}]
[null,"Tugas 2",{"$f":"TODAY()+15","v":"2016-12-14"}]
[null,"Tugas 3",{"$f":"TODAY()+30","v":"2016-12-29"}]
[null,"Tugas 4",{"$f":"TODAY()+45","v":"2017-01-13"}]
[null,"Tugas 5",{"$f":"TODAY()+60","v":"2017-01-28"}]
[null,"Tugas 6",{"$f":"TODAY()+75","v":"2017-02-12"}]
[null,"Tugas 7",{"$f":"TODAY()+90","v":"2017-02-27"}]
[null,"Tugas 8",{"$f":"TODAY()+105","v":"2017-03-14"}]
[null,"Tugas 9",{"$f":"TODAY()+115","v":"2017-03-24"}]
[null,"Tugas 10",{"$f":"TODAY()+130","v":"2017-04-08"}]
[null,"Tugas 11",{"$f":"TODAY()+145","v":"2017-04-23"}]
[null,"Tugas 12",{"$f":"TODAY()+160","v":"2017-05-08"}]

{"sheet":"Tampilan Bulan","index":1,"n_rows":17,"n_cols":8,"rows_kept":17,"merged":[[3,1,3,7]]}
[null,"TUGAS","TAMPILAN MINGGU"]
[null,"Pilih Bulan:","Masukkan Tahun:"]
[null,"September",{"$f":"YEAR(TODAY())","v":2016}]
[null," TAMPILAN BULAN"]
[null,"SENIN","SELASA","RABU","KAMIS","JUMAT","SABTU","MINGGU"]
[null,{"$f":"IF(WEEKDAY(DATEVALUE(\"1\"&BlnBulan&BlnTahun)-1)=COLUMN(A$2),1,IF(LEN(A6)>0,A6+1,\"\"))","v":""},"","",1,2,3,4]
[null,{"$f":"IF(LEN(B6)=0,\"\",IF(COUNTIF(Tugas[JATUH TEMPO],DATE(BlnTahun,BlnAngkBulan,B6))>0,\"Tugas jatuh tempo!\",\"\"))","v":""},{"$f":"IF(LEN(C6)=0,\"\",IF(COUNTIF(Tugas[JATUH TEMPO],DATE(BlnTahun,BlnAngkBulan,C6))>0,\"Tugas jatuh tempo!\",\"\"))","v":""},{"$f":"IF(LEN(D6)=0,\"\",IF(COUNTIF(Tugas[JATUH TEMPO],DATE(BlnTahun,BlnAngkBulan,D6))>0,\"Tugas jatuh tempo!\",\"\"))","v":""},{"$f":"IF(LEN(E6)=0,\"\",IF(COUNTIF(Tugas[JATUH TEMPO],DATE(BlnTahun,BlnAngkBulan,E6))>0,\"Tugas jatuh tempo!\",\"\"))","v":""},{"$f":"IF(LEN(F6)=0,\"\",IF(COUNTIF(Tugas[JATUH TEMPO],DATE(BlnTahun,BlnAngkBulan,F6))>0,\"Tugas jatuh tempo!\",\"\"))","v":""},{"$f":"IF(LEN(G6)=0,\"\",IF(COUNTIF(Tugas[JATUH TEMPO],DATE(BlnTahun,BlnAngkBulan,G6))>0,\"Tugas jatuh tempo!\",\"\"))","v":""},{"$f":"IF(LEN(H6)=0,\"\",IF(COUNTIF(Tugas[JATUH TEMPO],DATE(BlnTahun,BlnAngkBulan,H6))>0,\"Tugas jatuh tempo!\",\"\"))","v":""}]
[null,{"$f":"IF(LEN(H6)>0,IF(H6=DAY(DATE(BlnTahun,BlnAngkBulan+1,0)),\"\",H6+1),\"\")","v":5},{"$f":"IF(LEN(B8)>0,IF(B8=DAY(DATE(BlnTahun,BlnAngkBulan+1,0)),\"\",B8+1),\"\")","v":6},7,8,9,10,11]
[null,{"$f":"IF(LEN(B8)=0,\"\",IF(COUNTIF(Tugas[JATUH TEMPO],DATE(BlnTahun,BlnAngkBulan,B8))>0,\"Tugas jatuh tempo!\",\"\"))","v":""},{"$f":"IF(LEN(C8)=0,\"\",IF(COUNTIF(Tugas[JATUH TEMPO],DATE(BlnTahun,BlnAngkBulan,C8))>0,\"Tugas jatuh tempo!\",\"\"))","v":""},{"$f":"IF(LEN(D8)=0,\"\",IF(COUNTIF(Tugas[JATUH TEMPO],DATE(BlnTahun,BlnAngkBulan,D8))>0,\"Tugas jatuh tempo!\",\"\"))","v":""},{"$f":"IF(LEN(E8)=0,\"\",IF(COUNTIF(Tugas[JATUH TEMPO],DATE(BlnTahun,BlnAngkBulan,E8))>0,\"Tugas jatuh tempo!\",\"\"))","v":""},{"$f":"IF(LEN(F8)=0,\"\",IF(COUNTIF(Tugas[JATUH TEMPO],DATE(BlnTahun,BlnAngkBulan,F8))>0,\"Tugas jatuh tempo!\",\"\"))","v":""},{"$f":"IF(LEN(G8)=0,\"\",IF(COUNTIF(Tugas[JATUH TEMPO],DATE(BlnTahun,BlnAngkBulan,G8))>0,\"Tugas jatuh tempo!\",\"\"))","v":""},{"$f":"IF(LEN(H8)=0,\"\",IF(COUNTIF(Tugas[JATUH TEMPO],DATE(BlnTahun,BlnAngkBulan,H8))>0,\"Tugas jatuh tempo!\",\"\"))","v":""}]
[null,{"$f":"IF(LEN(H8)>0,IF(H8=DAY(DATE(BlnTahun,BlnAngkBulan+1,0)),\"\",H8+1),\"\")","v":12},{"$f":"IF(LEN(B10)>0,IF(B10=DAY(DATE(BlnTahun,BlnAngkBulan+1,0)),\"\",B10+1),\"\")","v":13},14,15,16,17,18]
[null,{"$f":"IF(LEN(B10)=0,\"\",IF(COUNTIF(Tugas[JATUH TEMPO],DATE(BlnTahun,BlnAngkBulan,B10))>0,\"Tugas jatuh tempo!\",\"\"))","v":""},{"$f":"IF(LEN(C10)=0,\"\",IF(COUNTIF(Tugas[JATUH TEMPO],DATE(BlnTahun,BlnAngkBulan,C10))>0,\"Tugas jatuh tempo!\",\"\"))","v":""},{"$f":"IF(LEN(D10)=0,\"\",IF(COUNTIF(Tugas[JATUH TEMPO],DATE(BlnTahun,BlnAngkBulan,D10))>0,\"Tugas jatuh tempo!\",\"\"))","v":""},{"$f":"IF(LEN(E10)=0,\"\",IF(COUNTIF(Tugas[JATUH TEMPO],DATE(BlnTahun,BlnAngkBulan,E10))>0,\"Tugas jatuh tempo!\",\"\"))","v":""},{"$f":"IF(LEN(F10)=0,\"\",IF(COUNTIF(Tugas[JATUH TEMPO],DATE(BlnTahun,BlnAngkBulan,F10))>0,\"Tugas jatuh tempo!\",\"\"))","v":""},{"$f":"IF(LEN(G10)=0,\"\",IF(COUNTIF(Tugas[JATUH TEMPO],DATE(BlnTahun,BlnAngkBulan,G10))>0,\"Tugas jatuh tempo!\",\"\"))","v":""},{"$f":"IF(LEN(H10)=0,\"\",IF(COUNTIF(Tugas[JATUH TEMPO],DATE(BlnTahun,BlnAngkBulan,H10))>0,\"Tugas jatuh tempo!\",\"\"))","v":""}]
[null,{"$f":"IF(LEN(H10)>0,IF(H10=DAY(DATE(BlnTahun,BlnAngkBulan+1,0)),\"\",H10+1),\"\")","v":19},{"$f":"IF(LEN(B12)>0,IF(B12=DAY(DATE(BlnTahun,BlnAngkBulan+1,0)),\"\",B12+1),\"\")","v":20},21,22,23,24,25]
[null,{"$f":"IF(LEN(B12)=0,\"\",IF(COUNTIF(Tugas[JATUH TEMPO],DATE(BlnTahun,BlnAngkBulan,B12))>0,\"Tugas jatuh tempo!\",\"\"))","v":""},{"$f":"IF(LEN(C12)=0,\"\",IF(COUNTIF(Tugas[JATUH TEMPO],DATE(BlnTahun,BlnAngkBulan,C12))>0,\"Tugas jatuh tempo!\",\"\"))","v":""},{"$f":"IF(LEN(D12)=0,\"\",IF(COUNTIF(Tugas[JATUH TEMPO],DATE(BlnTahun,BlnAngkBulan,D12))>0,\"Tugas jatuh tempo!\",\"\"))","v":""},{"$f":"IF(LEN(E12)=0,\"\",IF(COUNTIF(Tugas[JATUH TEMPO],DATE(BlnTahun,BlnAngkBulan,E12))>0,\"Tugas jatuh tempo!\",\"\"))","v":""},{"$f":"IF(LEN(F12)=0,\"\",IF(COUNTIF(Tugas[JATUH TEMPO],DATE(BlnTahun,BlnAngkBulan,F12))>0,\"Tugas jatuh tempo!\",\"\"))","v":""},{"$f":"IF(LEN(G12)=0,\"\",IF(COUNTIF(Tugas[JATUH TEMPO],DATE(BlnTahun,BlnAngkBulan,G12))>0,\"Tugas jatuh tempo!\",\"\"))","v":""},{"$f":"IF(LEN(H12)=0,\"\",IF(COUNTIF(Tugas[JATUH TEMPO],DATE(BlnTahun,BlnAngkBulan,H12))>0,\"Tugas jatuh tempo!\",\"\"))","v":""}]
[null,{"$f":"IF(LEN(H12)>0,IF(H12=DAY(DATE(BlnTahun,BlnAngkBulan+1,0)),\"\",H12+1),\"\")","v":26},{"$f":"IF(LEN(B14)>0,IF(B14=DAY(DATE(BlnTahun,BlnAngkBulan+1,0)),\"\",B14+1),\"\")","v":27},28,29,30,"",""]
[null,{"$f":"IF(LEN(B14)=0,\"\",IF(COUNTIF(Tugas[JATUH TEMPO],DATE(BlnTahun,BlnAngkBulan,B14))>0,\"Tugas jatuh tempo!\",\"\"))","v":""},{"$f":"IF(LEN(C14)=0,\"\",IF(COUNTIF(Tugas[JATUH TEMPO],DATE(BlnTahun,BlnAngkBulan,C14))>0,\"Tugas jatuh tempo!\",\"\"))","v":""},{"$f":"IF(LEN(D14)=0,\"\",IF(COUNTIF(Tugas[JATUH TEMPO],DATE(BlnTahun,BlnAngkBulan,D14))>0,\"Tugas jatuh tempo!\",\"\"))","v":""},{"$f":"IF(LEN(E14)=0,\"\",IF(COUNTIF(Tugas[JATUH TEMPO],DATE(BlnTahun,BlnAngkBulan,E14))>0,\"Tugas jatuh tempo!\",\"\"))","v":""},{"$f":"IF(LEN(F14)=0,\"\",IF(COUNTIF(Tugas[JATUH TEMPO],DATE(BlnTahun,BlnAngkBulan,F14))>0,\"Tugas jatuh tempo!\",\"\"))","v":""},{"$f":"IF(LEN(G14)=0,\"\",IF(COUNTIF(Tugas[JATUH TEMPO],DATE(BlnTahun,BlnAngkBulan,G14))>0,\"Tugas jatuh tempo!\",\"\"))","v":""},{"$f":"IF(LEN(H14)=0,\"\",IF(COUNTIF(Tugas[JATUH TEMPO],DATE(BlnTahun,BlnAngkBulan,H14))>0,\"Tugas jatuh tempo!\",\"\"))","v":""}]
[null,{"$f":"IF(LEN(H14)>0,IF(H14=DAY(DATE(BlnTahun,BlnAngkBulan+1,0)),\"\",H14+1),\"\")","v":""},{"$f":"IF(LEN(B16)>0,IF(B16=DAY(DATE(BlnTahun,BlnAngkBulan+1,0)),\"\",B16+1),\"\")","v":""},"","","","",""]
[null,{"$f":"IF(LEN(B16)=0,\"\",IF(COUNTIF(Tugas[JATUH TEMPO],DATE(BlnTahun,BlnAngkBulan,B16))>0,\"Tugas jatuh tempo!\",\"\"))","v":""},{"$f":"IF(LEN(C16)=0,\"\",IF(COUNTIF(Tugas[JATUH TEMPO],DATE(BlnTahun,BlnAngkBulan,C16))>0,\"Tugas jatuh tempo!\",\"\"))","v":""},{"$f":"IF(LEN(D16)=0,\"\",IF(COUNTIF(Tugas[JATUH TEMPO],DATE(BlnTahun,BlnAngkBulan,D16))>0,\"Tugas jatuh tempo!\",\"\"))","v":""},{"$f":"IF(LEN(E16)=0,\"\",IF(COUNTIF(Tugas[JATUH TEMPO],DATE(BlnTahun,BlnAngkBulan,E16))>0,\"Tugas jatuh tempo!\",\"\"))","v":""},{"$f":"IF(LEN(F16)=0,\"\",IF(COUNTIF(Tugas[JATUH TEMPO],DATE(BlnTahun,BlnAngkBulan,F16))>0,\"Tugas jatuh tempo!\",\"\"))","v":""},{"$f":"IF(LEN(G16)=0,\"\",IF(COUNTIF(Tugas[JATUH TEMPO],DATE(BlnTahun,BlnAngkBulan,G16))>0,\"Tugas jatuh tempo!\",\"\"))","v":""},{"$f":"IF(LEN(H16)=0,\"\",IF(COUNTIF(Tugas[JATUH TEMPO],DATE(BlnTahun,BlnAngkBulan,H16))>0,\"Tugas jatuh tempo!\",\"\"))","v":""}]

{"sheet":"Tampilan Minggu","index":2,"n_rows":17,"n_cols":8,"rows_kept":17,"merged":[[3,1,3,7]]}
[null,"TUGAS","TAMPILAN BULAN"]
[null,"Pilih Bulan:","Masukkan Tahun:","Pilih Minggu #:"]
[null,"September",{"$f":"YEAR(TODAY())","v":2016},"Minggu 1"]
[null," TAMPILAN MINGGU"]
[null,{"$f":"IF(WEEKDAY(DATEVALUE(\"1\"&MingBulan&MingTahun)-1)=COLUMN(A$2),1,IF(LEN(A5)>0,A5+1,\"\"))","v":""},"","",1,2,3,4]
[null,{"$f":"IF(LEN(H5)>0,IF(H5=HariTerakhirBulan_Minggu,\"\",H5+1),\"\")","v":5},{"$f":"IF(LEN(B6)>0,IF(B6=HariTerakhirBulan_Minggu,\"\",B6+1),\"\")","v":6},7,8,9,10,11]
[null,{"$f":"IF(LEN(H6)>0,IF(H6=HariTerakhirBulan_Minggu,\"\",H6+1),\"\")","v":12},13,14,15,16,17,18]
[null,{"$f":"IF(LEN(H7)>0,IF(H7=HariTerakhirBulan_Minggu,\"\",H7+1),\"\")","v":19},20,21,22,23,24,25]
[null,{"$f":"IF(LEN(H8)>0,IF(H8=HariTerakhirBulan_Minggu,\"\",H8+1),\"\")","v":26},27,28,29,30,"",""]
[null,{"$f":"IF(LEN(H9)>0,IF(H9=HariTerakhirBulan_Minggu,\"\",H9+1),\"\")","v":""},"","","","","",""]
[null,"SENIN","SELASA","RABU","KAMIS","JUMAT","SABTU","MINGGU"]
[null,{"$f":"IF(B14=\"\",IF(AND(ISNUMBER(A12),A12<HariTerakhirBulan_Minggu),A12+1,\"\"),IF(B14<=7,\"\",INDEX(MingTampilanBulan,MingMinggu,COLUMN(A$2))-7))","v":""},"","","","","",""]
[null,{"$f":"IF(LEN(B12)=0,\"\",IF(COUNTIF(Tugas[JATUH TEMPO],DATE(MingTahun,MingAngkBulan,B12))>0,\"Tugas jatuh tempo!\",\"\"))","v":""},{"$f":"IF(LEN(C12)=0,\"\",IF(COUNTIF(Tugas[JATUH TEMPO],DATE(MingTahun,MingAngkBulan,C12))>0,\"Tugas jatuh tempo!\",\"\"))","v":""},{"$f":"IF(LEN(D12)=0,\"\",IF(COUNTIF(Tugas[JATUH TEMPO],DATE(MingTahun,MingAngkBulan,D12))>0,\"Tugas jatuh tempo!\",\"\"))","v":""},{"$f":"IF(LEN(E12)=0,\"\",IF(COUNTIF(Tugas[JATUH TEMPO],DATE(MingTahun,MingAngkBulan,E12))>0,\"Tugas jatuh tempo!\",\"\"))","v":""},{"$f":"IF(LEN(F12)=0,\"\",IF(COUNTIF(Tugas[JATUH TEMPO],DATE(MingTahun,MingAngkBulan,F12))>0,\"Tugas jatuh tempo!\",\"\"))","v":""},{"$f":"IF(LEN(G12)=0,\"\",IF(COUNTIF(Tugas[JATUH TEMPO],DATE(MingTahun,MingAngkBulan,G12))>0,\"Tugas jatuh tempo!\",\"\"))","v":""},{"$f":"IF(LEN(H12)=0,\"\",IF(COUNTIF(Tugas[JATUH TEMPO],DATE(MingTahun,MingAngkBulan,H12))>0,\"Tugas jatuh tempo!\",\"\"))","v":""}]
[null,{"$f":"INDEX(MingTampilanBulan,MingMinggu,COLUMN(A$2))","v":""},"","",1,2,3,4]
[null,{"$f":"IF(LEN(B14)=0,\"\",IF(COUNTIF(Tugas[JATUH TEMPO],DATE(MingTahun,MingAngkBulan,B14))>0,\"Tugas jatuh tempo!\",\"\"))","v":""},{"$f":"IF(LEN(C14)=0,\"\",IF(COUNTIF(Tugas[JATUH TEMPO],DATE(MingTahun,MingAngkBulan,C14))>0,\"Tugas jatuh tempo!\",\"\"))","v":""},{"$f":"IF(LEN(D14)=0,\"\",IF(COUNTIF(Tugas[JATUH TEMPO],DATE(MingTahun,MingAngkBulan,D14))>0,\"Tugas jatuh tempo!\",\"\"))","v":""},{"$f":"IF(LEN(E14)=0,\"\",IF(COUNTIF(Tugas[JATUH TEMPO],DATE(MingTahun,MingAngkBulan,E14))>0,\"Tugas jatuh tempo!\",\"\"))","v":""},{"$f":"IF(LEN(F14)=0,\"\",IF(COUNTIF(Tugas[JATUH TEMPO],DATE(MingTahun,MingAngkBulan,F14))>0,\"Tugas jatuh tempo!\",\"\"))","v":""},{"$f":"IF(LEN(G14)=0,\"\",IF(COUNTIF(Tugas[JATUH TEMPO],DATE(MingTahun,MingAngkBulan,G14))>0,\"Tugas jatuh tempo!\",\"\"))","v":""},{"$f":"IF(LEN(H14)=0,\"\",IF(COUNTIF(Tugas[JATUH TEMPO],DATE(MingTahun,MingAngkBulan,H14))>0,\"Tugas jatuh tempo!\",\"\"))","v":""}]
[null,{"$f":"IFERROR(IF(B14=\"\",IF(AND(ISNUMBER(A16),A16<HariTerakhirBulan_Minggu),A16+1,$H$14+COLUMN(A$2)),IF(B14+7>HariTerakhirBulan_Minggu,\"\",INDEX(MingTampilanBulan,MingMinggu,COLUMN(A$2))+7)),\"\")","v":5},{"$f":"IFERROR(IF(C14=\"\",IF(AND(ISNUMBER(B16),B16<HariTerakhirBulan_Minggu),B16+1,$H$14+COLUMN(B$2)),IF(C14+7>HariTerakhirBulan_Minggu,\"\",INDEX(MingTampilanBulan,MingMinggu,COLUMN(B$2))+7)),\"\")","v":6},{"$f":"IFERROR(IF(D14=\"\",IF(AND(ISNUMBER(C16),C16<HariTerakhirBulan_Minggu),C16+1,$H$14+COLUMN(C$2)),IF(D14+7>HariTerakhirBulan_Minggu,\"\",INDEX(MingTampilanBulan,MingMinggu,COLUMN(C$2))+7)),\"\")","v":7},{"$f":"IFERROR(IF(E14=\"\",IF(AND(ISNUMBER(D16),D16<HariTerakhirBulan_Minggu),D16+1,$H$14+COLUMN(D$2)),IF(E14+7>HariTerakhirBulan_Minggu,\"\",INDEX(MingTampilanBulan,MingMinggu,COLUMN(D$2))+7)),\"\")","v":8},{"$f":"IFERROR(IF(F14=\"\",IF(AND(ISNUMBER(E16),E16<HariTerakhirBulan_Minggu),E16+1,$H$14+COLUMN(E$2)),IF(F14+7>HariTerakhirBulan_Minggu,\"\",INDEX(MingTampilanBulan,MingMinggu,COLUMN(E$2))+7)),\"\")","v":9},{"$f":"IFERROR(IF(G14=\"\",IF(AND(ISNUMBER(F16),F16<HariTerakhirBulan_Minggu),F16+1,$H$14+COLUMN(F$2)),IF(G14+7>HariTerakhirBulan_Minggu,\"\",INDEX(MingTampilanBulan,MingMinggu,COLUMN(F$2))+7)),\"\")","v":10},{"$f":"IFERROR(IF(H14=\"\",IF(AND(ISNUMBER(G16),G16<HariTerakhirBulan_Minggu),G16+1,$H$14+COLUMN(G$2)),IF(H14+7>HariTerakhirBulan_Minggu,\"\",INDEX(MingTampilanBulan,MingMinggu,COLUMN(G$2))+7)),\"\")","v":11}]
[null,{"$f":"IF(LEN(B16)=0,\"\",IF(COUNTIF(Tugas[JATUH TEMPO],DATE(MingTahun,MingAngkBulan,B16))>0,\"Tugas jatuh tempo!\",\"\"))","v":""},{"$f":"IF(LEN(C16)=0,\"\",IF(COUNTIF(Tugas[JATUH TEMPO],DATE(MingTahun,MingAngkBulan,C16))>0,\"Tugas jatuh tempo!\",\"\"))","v":""},{"$f":"IF(LEN(D16)=0,\"\",IF(COUNTIF(Tugas[JATUH TEMPO],DATE(MingTahun,MingAngkBulan,D16))>0,\"Tugas jatuh tempo!\",\"\"))","v":""},{"$f":"IF(LEN(E16)=0,\"\",IF(COUNTIF(Tugas[JATUH TEMPO],DATE(MingTahun,MingAngkBulan,E16))>0,\"Tugas jatuh tempo!\",\"\"))","v":""},{"$f":"IF(LEN(F16)=0,\"\",IF(COUNTIF(Tugas[JATUH TEMPO],DATE(MingTahun,MingAngkBulan,F16))>0,\"Tugas jatuh tempo!\",\"\"))","v":""},{"$f":"IF(LEN(G16)=0,\"\",IF(COUNTIF(Tugas[JATUH TEMPO],DATE(MingTahun,MingAngkBulan,G16))>0,\"Tugas jatuh tempo!\",\"\"))","v":""},{"$f":"IF(LEN(H16)=0,\"\",IF(COUNTIF(Tugas[JATUH TEMPO],DATE(MingTahun,MingAngkBulan,H16))>0,\"Tugas jatuh tempo!\",\"\"))","v":""}]